lending/lending_fUSD_20260411
["ID","MTS","AMOUNT","RATE_DAILY","PERIOD"]
[420286953,1775911049704,-786.32,0.00042,120]
[420286954,1775911049743,-3229.13261602,0.00042,120]
[420286955,1775911049787,-3881.16062577,0.00042,120]
[420286956,1775911049829,-5651.2722972,0.00042,120]
[420286957,1775911049869,-150.0,0.00042,120]
[420286958,1775911049911,-2500.0,0.00042,120]
[420286959,1775911049955,-344.0,0.00042,120]
[420286960,1775911050015,-150.0,0.00042008,30]
[420286961,1775911050109,-172.06105035,0.0004201,30]
[420286962,1775911050216,-240.0,0.00042024,91]
[420286963,1775911050300,-150.0,0.00042038,30]
[420286964,1775911050349,-150.0,0.00042044,30]
[420286965,1775911050400,-251.5373618,0.00042046,30]
[420286966,1775911050470,-194.25895487,0.00042046,30]
[420286967,1775911050534,-245.2524984,0.00042046,30]
[420286968,1775911050581,-320.27544227,0.00042046,30]
[420286969,1775911050627,-244.52531101,0.00042046,30]
[420286970,1775911050669,-203.76821502,0.00042046,30]
[420286971,1775911050712,-1000.0,0.00042079,120]
[420286972,1775911050749,-251.5373618,0.00042093,30]
[420286973,1775911050788,-194.25895487,0.00042093,30]
[420286974,1775911050827,-245.2524984,0.00042093,30]
[420286975,1775911050869,-320.27544227,0.00042093,30]
[420286976,1775911050919,-244.52531101,0.00042093,30]
[420286977,1775911050964,-203.76821502,0.00042093,30]
[420286978,1775911051013,-20998.999997,0.000421,120]
[420286979,1775911051063,-150.0,0.00042104,30]
[420286980,1775911051111,-727.0,0.0004211,60]
[420286981,1775911051157,-150.0,0.00042112,30]
[420286982,1775911051205,-150.0,0.00042113,30]
[420286983,1775911051254,-603.89561678,0.00042121,120]
[420286984,1775911051314,-150.0,0.00042127,30]
[420286985,1775911051375,-163.0,0.0004213,120]
[420286986,1775911051423,-251.5373618,0.0004214,30]
[420286987,1775911051467,-194.25895487,0.0004214,30]
[420286988,1775911051511,-245.2524984,0.0004214,30]
[420286989,1775911051556,-320.27544227,0.0004214,30]
[420286990,1775911051603,-244.52531101,0.0004214,30]
[420286991,1775911051651,-203.76821502,0.0004214,30]
[420286992,1775911051696,-150.0,0.00042171,30]
[420286993,1775911051746,-150.0,0.00042173,120]
[420286994,1775911051799,-3688.99,0.0004218,90]
[420286995,1775911051845,-150.0,0.00042183,30]
[420286996,1775911051893,-251.5373618,0.00042187,30]
[420286997,1775911051937,-194.25895487,0.00042187,30]
[420286998,1775911051974,-245.2524984,0.00042187,30]
[420286999,1775911052014,-320.27544227,0.00042187,30]
[420287000,1775911052052,-244.52531101,0.00042187,30]
[420287001,1775911052096,-203.76821502,0.00042187,30]
[420287002,1775911052138,-5000.0,0.00042192,120]
[420287003,1775911052182,-5000.0,0.00042192,120]
[420287004,1775911052226,-5000.0,0.00042192,120]
[420287005,1775911052269,-5000.0,0.00042192,120]
[420287006,1775911052314,-5000.0,0.00042192,120]
[420287007,1775911052358,-5000.0,0.00042192,120]
[420287008,1775911052402,-5000.0,0.00042192,120]
[420287009,1775911052445,-5000.0,0.00042192,120]
[420287010,1775911052486,-5000.0,0.00042192,120]
[420287011,1775911052530,-5000.0,0.00042192,120]
[420287012,1775911052577,-5000.0,0.00042192,120]
[420287013,1775911052624,-5000.0,0.00042192,120]
[420287014,1775911052695,-5000.0,0.00042192,120]
[420287015,1775911052769,-5000.0,0.00042192,120]
[420287016,1775911052843,-5000.0,0.00042192,120]
[420287017,1775911052911,-5000.0,0.00042192,120]
[420287018,1775911052995,-5000.0,0.00042192,120]
[420287019,1775911053040,-5050.5,0.00042192,120]
[420287020,1775911053082,-150.0,0.00042196,30]
[420287021,1775911053125,-367.3381,0.000422,90]
[420287022,1775911053170,-1325.416,0.000422,90]
[420287023,1775911053221,-1362.894,0.000422,120]
[420287024,1775911053267,-405.3751,0.000422,90]
[420287025,1775911053314,-150.0,0.00042215,30]
[420287026,1775911053357,-251.5373618,0.00042234,30]
[420287027,1775911053409,-194.25895487,0.00042234,30]
[420287028,1775911053471,-245.2524984,0.00042234,30]
[420287029,1775911053517,-320.27544227,0.00042234,30]
[420287030,1775911053563,-244.52531101,0.00042234,30]
[420287031,1775911053605,-203.76821502,0.00042234,30]
[420287032,1775911053656,-150.0,0.00042237,30]
[420287033,1775911053725,-150.0,0.00042237,30]
[420287034,1775911053784,-150.0,0.00042252,30]
[420287035,1775911053837,-500.0,0.00042255,120]
[420287036,1775911053897,-3143.32,0.0004228,66]
[420287037,1775911053956,-251.5373618,0.00042281,30]
[420287038,1775911054014,-194.25895487,0.00042281,30]
[420287039,1775911054060,-245.2524984,0.00042281,30]
[420287040,1775911054106,-320.27544227,0.00042281,30]
[420287041,1775911054155,-244.52531101,0.00042281,30]
[420287042,1775911054203,-203.76821502,0.00042281,30]
[420287043,1775911054280,-2500.0,0.000423,120]
[420287044,1775911054347,-130365.0,0.000423,60]
[420287045,1775911054422,-150.0,0.00042304,30]
[420287046,1775911054479,-150.0,0.00042319,30]
[420287047,1775911054548,-150.0,0.00042322,30]
[420287048,1775911054600,-251.5373618,0.00042328,30]
[420287049,1775911054661,-194.25895487,0.00042328,30]
[420287050,1775911054714,-245.2524984,0.00042328,30]
[420287051,1775911054774,-320.27544227,0.00042328,30]
[420287052,1775911054840,-244.52531101,0.00042328,30]
[420287053,1775911054905,-203.76821502,0.00042328,30]
[420287054,1775911054967,-5000.0,0.00042331,30]
[420287055,1775911055020,-150.0,0.00042348,30]
[420287056,1775911055080,-150.0,0.00042371,30]
[420287057,1775911055138,-251.5373618,0.00042375,30]
[420287058,1775911055190,-194.25895487,0.00042375,30]
[420287059,1775911055247,-245.2524984,0.00042375,30]
[420287060,1775911055313,-320.27544227,0.00042375,30]
[420287061,1775911055392,-244.52531101,0.00042375,30]
[420287062,1775911055539,-203.76821502,0.00042375,30]
[420287063,1775911055684,-150.0,0.00042391,30]
[420287064,1775911055751,-203.85838449,0.00042393,120]
[420287065,1775911055804,-10179.91540719,0.000424,118]
[420287066,1775911055857,-251.5373618,0.00042422,30]
[420287067,1775911055911,-194.25895487,0.00042422,30]
[420287068,1775911055962,-245.2524984,0.00042422,30]
[420287069,1775911056015,-150.0,0.00042422,30]
[420287070,1775911056070,-320.27544227,0.00042422,30]
[420287071,1775911056127,-244.52531101,0.00042422,30]
[420287072,1775911056178,-203.76821502,0.00042422,30]
[420287073,1775911056231,-1000.0,0.00042432,120]
[420287074,1775911056304,-150.0,0.00042437,30]
[420287075,1775911056368,-150.0,0.00042461,30]
[420287076,1775911056450,-212.0,0.00042466,120]
[420287077,1775911056514,-174.0,0.00042466,120]
[420287078,1775911056589,-500.0,0.00042466,100]
[420287079,1775911056644,-550.0,0.00042466,120]
[420287080,1775911056709,-251.5373618,0.00042469,30]
[420287081,1775911056786,-194.25895487,0.00042469,30]
[420287082,1775911056837,-245.2524984,0.00042469,30]
[420287083,1775911056888,-320.27544227,0.00042469,30]
[420287084,1775911056961,-244.52531101,0.00042469,30]
[420287085,1775911057050,-203.76821502,0.00042469,30]
[420287086,1775911057131,-150.0,0.00042487,30]
[420287087,1775911057220,-500.0,0.000425,45]
[420287088,1775911057285,-1599.84,0.000425,120]
[420287089,1775911057349,-2500.0,0.000425,120]
[420287090,1775911057402,-570.0,0.000425,45]
[420287091,1775911057454,-500.0,0.000425,45]
[420287092,1775911057516,-500.0,0.000425,45]
[420287093,1775911057580,-500.0,0.000425,45]
[420287094,1775911057640,-500.0,0.000425,45]
[420287095,1775911057710,-500.0,0.000425,45]
[420287096,1775911057775,-500.0,0.000425,45]
[420287097,1775911057828,-500.0,0.000425,45]
[420287098,1775911057878,-500.0,0.000425,45]
[420287099,1775911057930,-500.0,0.000425,45]
[420287100,1775911057983,-500.0,0.000425,45]
[420287101,1775911058034,-500.0,0.000425,45]
[420287102,1775911058089,-500.0,0.000425,45]
[420287103,1775911058148,-500.0,0.000425,45]
[420287104,1775911058207,-1762.22230677,0.000425,60]
[420287105,1775911058298,-500.0,0.000425,45]
[420287106,1775911058432,-500.0,0.000425,45]
[420287107,1775911058538,-500.0,0.000425,45]
[420287108,1775911058620,-500.0,0.000425,45]
[420287109,1775911058671,-500.0,0.000425,45]
[420287110,1775911058720,-500.0,0.000425,45]
[420287111,1775911058772,-500.0,0.000425,45]
[420287112,1775911058830,-500.0,0.000425,45]
[420287113,1775911058883,-500.0,0.000425,45]
[420287114,1775911058937,-500.0,0.000425,45]
[420287115,1775911059002,-155326.886731,0.000425,30]
[420287116,1775911059067,-153703.92291992,0.000425,40]
[420287117,1775911085850,2371.82293,0.00026681,120]
[420287118,1775911115543,-4229.17,0.0002,30]
[420287119,1775911115613,-3282.87,0.00022353,30]
[420287120,1775911115654,-2387.92,0.00024707,60]
[420287121,1775911115766,-300.0,0.0003112,120]
[420287122,1775911115818,-300.0,0.0003112,120]
[420287123,1775911115863,-241.0,0.0003112,120]
[420287124,1775911115914,-500.0,0.0003112,120]
[420287125,1775911115978,-500.0,0.0003112,120]
[420287126,1775911116021,-492.0,0.0003112,120]
[420287127,1775911116066,-516.0,0.00032943,30]
[420287128,1775911116105,-516.0,0.00033943,30]
[420287129,1775911116149,-500.0,0.00034396,60]
[420287130,1775911116195,-500.0,0.00034396,60]
[420287131,1775911116236,-500.0,0.00034396,60]
[420287132,1775911116277,-500.0,0.00034396,60]
[420287133,1775911116320,-900.0,0.00034396,60]
[420287134,1775911116361,-500.0,0.00034396,60]
[420287135,1775911116397,-170.5912026,0.00034396,60]
[420287136,1775911116436,-992.7935893,0.00034396,60]
[420287137,1775911116475,-1200.0,0.00034396,60]
[420287138,1775911116510,-1200.0,0.00034396,60]
[420287139,1775911116555,-1200.0,0.00034396,60]
[420287140,1775911116600,-1200.0,0.00034396,60]
[420287141,1775911116639,-500.0,0.00034396,60]
[420287142,1775911116682,-1200.0,0.00034396,60]
[420287143,1775911116718,-500.0,0.00034396,60]
[420287144,1775911116755,-1200.0,0.00034396,60]
[420287145,1775911117276,-500.0,0.00034396,60]
[420287146,1775911117358,-1200.0,0.00034396,60]
[420287147,1775911117401,-674.5031779,0.00034396,60]
[420287148,1775911117457,-1200.0,0.00034396,60]
[420287149,1775911117509,-1200.0,0.00034396,60]
[420287150,1775911117555,-1200.0,0.00034396,60]
[420287151,1775911117594,-1200.0,0.00034396,60]
[420287152,1775911117639,-222.6745051,0.00034396,60]
[420287153,1775911117685,-1200.0,0.00034396,60]
[420287154,1775911117728,-158.3876514,0.00034396,60]
[420287155,1775911117772,-1200.0,0.00034396,60]
[420287156,1775911117819,-1200.0,0.00034396,60]
[420287157,1775911117861,-1200.0,0.00034396,60]
[420287158,1775911117902,-1200.0,0.00034396,60]
[420287159,1775911117946,-1200.0,0.00034396,60]
[420287160,1775911117999,-1200.0,0.00034396,60]
[420287161,1775911118050,-1200.0,0.00034396,60]
[420287162,1775911118104,-1200.0,0.00034396,60]
[420287163,1775911118159,-1200.0,0.00034396,60]
[420287164,1775911118210,-1200.0,0.00034396,60]
[420287165,1775911118260,-1200.0,0.00034396,60]
[420287166,1775911118325,-1200.0,0.00034396,60]
[420287167,1775911118392,-1200.0,0.00034396,60]
[420287168,1775911118443,-1200.0,0.00034396,60]
[420287169,1775911118500,-1200.0,0.00034396,60]
[420287170,1775911118541,-1200.0,0.00034396,60]
[420287171,1775911118609,-2383.6873391,0.00034396,60]
[420287172,1775911118655,-516.0,0.00034943,30]
[420287173,1775911118710,-516.0,0.00035943,30]
[420287174,1775911118758,-516.0,0.00036943,30]
[420287175,1775911118799,-516.0,0.00037943,30]
[420287176,1775911118840,-516.0,0.00038943,30]
[420287177,1775911118895,-500.0,0.00041,45]
[420287178,1775911119011,-500.0,0.000415,45]
[420287179,1775911119065,-500.0,0.000415,45]
[420287180,1775911119103,-150.0,0.00041558,120]
[420287181,1775911119141,-900.0,0.00041665,120]
[420287182,1775911119184,-500.0,0.00041665,120]
[420287183,1775911119226,-500.0,0.00042,45]
[420287184,1775911119271,-500.0,0.00042,45]
[420287185,1775911119317,-900.0,0.00042213,120]
[420287186,1775911119363,-500.0,0.00042213,120]
[420287187,1775911119412,-46296.07708008,0.000425,40]
[420287188,1775911119461,-463.0,0.000425,120]
[420287189,1775911119507,-751.0,0.000425,120]
[420287190,1775911119560,-14333.57159783,0.000425,120]
[420287191,1775911119610,-617.492389,0.000425,120]
[420287192,1775911119659,-2344.0814982,0.000425,60]
[420287193,1775911119700,-2760.53499956,0.000425,120]
[420287194,1775911119743,-153.0,0.000425,120]
[420287195,1775911119787,-50000.0,0.000425,120]
[420287196,1775911119831,-150.0,0.000425,120]
[420287197,1775911119873,-344.0,0.000425,120]
[420287198,1775911119918,-500.0,0.000425,45]
[420287199,1775911119966,-500.0,0.000425,45]
[420287200,1775911120017,-211.03256831,0.000425,120]
[420287201,1775911120078,-1793.0,0.000425,120]
[420287202,1775911120128,-800.0,0.000425,30]
[420287203,1775911120186,-2500.0,0.000425,120]
[420287204,1775911120235,-150.0,0.00042504,30]
[420287205,1775911120324,-251.5373618,0.00042516,30]
[420287206,1775911120391,-194.25895487,0.00042516,30]
[420287207,1775911120439,-245.2524984,0.00042516,30]
[420287208,1775911120479,-320.27544227,0.00042516,30]
[420287209,1775911120623,-244.52531101,0.00042516,30]
[420287210,1775911120665,-203.76821502,0.00042516,30]
[420287211,1775911120725,-160.58979643,0.00042525,100]
[420287212,1775911120762,-150.0,0.00042526,30]
[420287213,1775911120801,-150.0,0.0004253,30]
[420287214,1775911120839,-739.58137707,0.00042555,90]
[420287215,1775911120877,-2462.08762302,0.00042555,90]
[420287216,1775911120917,-251.5373618,0.00042563,30]
[420287217,1775911120953,-194.25895487,0.00042563,30]
[420287218,1775911120989,-245.2524984,0.00042563,30]
[420287219,1775911121033,-320.27544227,0.00042563,30]
[420287220,1775911121099,-244.52531101,0.00042563,30]
[420287221,1775911121163,-203.76821502,0.00042563,30]
[420287222,1775911121219,-150.0,0.0004257,30]
[420287223,1775911121265,-150.0,0.0004257,30]
[420287224,1775911121324,-150.0,0.0004257,30]
[420287225,1775911121412,-150.0,0.000426,30]
[420287226,1775911121474,-2000.0,0.000426,120]
[420287227,1775911121531,-50000.0,0.000426,120]
[420287228,1775911121574,-500.0,0.00042608,120]
[420287229,1775911121628,-251.5373618,0.0004261,30]
[420287230,1775911121674,-194.25895487,0.0004261,30]
[420287231,1775911121714,-245.2524984,0.0004261,30]
[420287232,1775911121749,-320.27544227,0.0004261,30]
[420287233,1775911121792,-244.52531101,0.0004261,30]
[420287234,1775911121829,-203.76821502,0.0004261,30]
[420287235,1775911121868,-150.0,0.00042629,30]
[420287236,1775911121915,-150.0,0.00042637,30]
[420287237,1775911121961,-251.5373618,0.00042657,30]
[420287238,1775911122004,-194.25895487,0.00042657,30]
[420287239,1775911122040,-245.2524984,0.00042657,30]
[420287240,1775911122077,-320.27544227,0.00042657,30]
[420287241,1775911122117,-244.52531101,0.00042657,30]
[420287242,1775911122152,-203.76821502,0.00042657,30]
[420287243,1775911122191,-150.0,0.00042669,30]
[420287244,1775911122226,-1373.64465912,0.000427,120]
[420287245,1775911122260,-2856.53535124,0.000427,120]
[420287246,1775911122300,-150.0,0.00042703,30]
[420287247,1775911122338,-251.5373618,0.00042704,30]
[420287248,1775911122379,-194.25895487,0.00042704,30]
[420287249,1775911122435,-245.2524984,0.00042704,30]
[420287250,1775911122476,-320.27544227,0.00042704,30]
[420287251,1775911122519,-244.52531101,0.00042704,30]
[420287252,1775911122563,-203.76821502,0.00042704,30]
[420287253,1775911122602,-150.0,0.00042733,30]
[420287254,1775911122669,-150.0,0.00042739,30]
[420287255,1775911122712,-4175.01628367,0.00042739,30]
[420287256,1775911122755,-1000.0,0.0004274,120]
[420287257,1775911122801,-1000.0,0.0004274,120]
[420287258,1775911122846,-1000.0,0.0004274,120]
[420287259,1775911122895,-1000.0,0.0004274,120]
[420287260,1775911122957,-1000.0,0.0004274,120]
[420287261,1775911123026,-1000.0,0.0004274,120]
[420287262,1775911123095,-1000.0,0.0004274,120]
[420287263,1775911123181,-1000.0,0.0004274,120]
[420287264,1775911123285,-1000.0,0.0004274,120]
[420287265,1775911123351,-1000.0,0.0004274,120]
[420287266,1775911123411,-1000.0,0.0004274,120]
[420287267,1775911123469,-1000.0,0.0004274,120]
[420287268,1775911123517,-1000.0,0.0004274,120]
[420287269,1775911123567,-1000.0,0.0004274,120]
[420287270,1775911123618,-1000.0,0.0004274,120]
[420287271,1775911123654,-1000.0,0.0004274,120]
[420287272,1775911123698,-1000.0,0.0004274,120]
[420287273,1775911123740,-1000.0,0.0004274,120]
[420287274,1775911123784,-1000.0,0.0004274,120]
[420287275,1775911123824,-1000.0,0.0004274,120]
[420287276,1775911123873,-1000.0,0.0004274,120]
[420287277,1775911123912,-1000.0,0.0004274,120]
[420287278,1775911123949,-1000.0,0.0004274,120]
[420287279,1775911123997,-1000.0,0.0004274,120]
[420287280,1775911124033,-1000.0,0.0004274,120]
[420287281,1775911124078,-1000.0,0.0004274,120]
[420287282,1775911124116,-1000.0,0.0004274,120]
[420287283,1775911124170,-1000.0,0.0004274,120]
[420287284,1775911124215,-1000.0,0.0004274,120]
[420287285,1775911124267,-1000.0,0.0004274,120]
[420287286,1775911124310,-1468.43205829,0.0004274,120]
[420287287,1775911124356,-251.5373618,0.00042751,30]
[420287288,1775911124403,-194.25895487,0.00042751,30]
[420287289,1775911124459,-245.2524984,0.00042751,30]
[420287290,1775911124543,-320.27544227,0.00042751,30]
[420287291,1775911124589,-244.52531101,0.00042751,30]
[420287292,1775911124632,-203.76821502,0.00042751,30]
[420287293,1775911124677,-900.0,0.00042761,120]
[420287294,1775911124715,-500.0,0.00042761,120]
[420287295,1775911124763,-12891.98803773,0.00042767,30]
[420287296,1775911124807,-150.0,0.0004277,30]
[420287297,1775911124851,-150.0,0.00042778,30]
[420287298,1775911124888,-2500.0,0.0004278,120]
[420287299,1775911124930,-1000.0,0.00042785,120]
[420287300,1775911124976,-150.0,0.00042792,30]
[420287301,1775911125020,-251.5373618,0.00042798,30]
[420287302,1775911125065,-194.25895487,0.00042798,30]
[420287303,1775911125101,-245.2524984,0.00042798,30]
[420287304,1775911125318,-320.27544227,0.00042798,30]
[420287305,1775911125373,-244.52531101,0.00042798,30]
[420287306,1775911125471,-203.76821502,0.00042798,30]
[420287307,1775911125531,-200000.0,0.000428,45]
[420287308,1775911125591,-1504.37668061,0.000428,120]
[420287309,1775911125635,-3973.52958512,0.000428,90]
[420287310,1775911125698,-150.0,0.00042808,30]
[420287311,1775911125759,-2077.62,0.00042829,120]
[420287312,1775911125802,-150.0,0.00042836,30]
[420287313,1775911125844,-150.0,0.00042836,30]
[420287314,1775911125901,-150.0,0.00042836,30]
[420287315,1775911125961,-251.5373618,0.00042846,30]
[420287316,1775911126007,-194.25895487,0.00042846,30]
[420287317,1775911126053,-245.2524984,0.00042846,30]
[420287318,1775911126100,-320.27544227,0.00042846,30]
[420287319,1775911126138,-244.52531101,0.00042846,30]
[420287320,1775911126179,-203.76821502,0.00042846,30]
[420287321,1775911126220,-10000.0,0.00042875,60]
[420287322,1775911126263,-10000.0,0.00042875,60]
[420287323,1775911126307,-10000.0,0.00042875,60]
[420287324,1775911126351,-10000.0,0.00042875,60]
[420287325,1775911126392,-10000.0,0.00042875,60]
[420287326,1775911126438,-10000.0,0.00042875,60]
[420287327,1775911126484,-10000.0,0.00042875,60]
[420287328,1775911126537,-10000.0,0.00042875,60]
[420287329,1775911126593,-10000.0,0.00042875,60]
[420287330,1775911126635,-10000.0,0.00042875,60]
[420287331,1775911126681,-10000.0,0.00042875,60]
[420287332,1775911126717,-10000.0,0.00042875,60]
[420287333,1775911126756,-10000.0,0.00042875,60]
[420287334,1775911126799,-10000.0,0.00042875,60]
[420287335,1775911126840,-10000.0,0.00042875,60]
[420287336,1775911126879,-10000.0,0.00042875,60]
[420287337,1775911126919,-10000.0,0.00042875,60]
[420287338,1775911126978,-10000.0,0.00042875,60]
[420287339,1775911127023,-10000.0,0.00042875,60]
[420287340,1775911127059,-10000.0,0.00042875,60]
[420287341,1775911127100,-10000.0,0.00042875,60]
[420287342,1775911127156,-10000.0,0.00042875,60]
[420287343,1775911127197,-10000.0,0.00042875,60]
[420287344,1775911127241,-10000.0,0.00042875,60]
[420287345,1775911127282,-10000.0,0.00042875,60]
[420287346,1775911127321,-10000.0,0.00042875,60]
[420287347,1775911127359,-10000.0,0.00042875,60]
[420287348,1775911127407,-10000.0,0.00042875,60]
[420287349,1775911127453,-10000.0,0.00042875,60]
[420287350,1775911127510,-10000.0,0.00042875,60]
[420287351,1775911127554,-10000.0,0.00042875,60]
[420287352,1775911127598,-10000.0,0.00042875,60]
[420287353,1775911127640,-10000.0,0.00042875,60]
[420287354,1775911127680,-10000.0,0.00042875,60]
[420287355,1775911127720,-10000.0,0.00042875,60]
[420287356,1775911127759,-10000.0,0.00042875,60]
[420287357,1775911127804,-10000.0,0.00042875,60]
[420287358,1775911127852,-10000.0,0.00042875,60]
[420287359,1775911127905,-10000.0,0.00042875,60]
[420287360,1775911127986,-10000.0,0.00042875,60]
[420287361,1775911128042,-10000.0,0.00042875,60]
[420287362,1775911128114,-10000.0,0.00042875,60]
[420287363,1775911128161,-10000.0,0.00042875,60]
[420287364,1775911128201,-10000.0,0.00042875,60]
[420287365,1775911128237,-10000.0,0.00042875,60]
[420287366,1775911128285,-10000.0,0.00042875,60]
[420287367,1775911128326,-10000.0,0.00042875,60]
[420287368,1775911128366,-10000.0,0.00042875,60]
[420287369,1775911128407,-10000.0,0.00042875,60]
[420287370,1775911128449,-5000.0,0.00042875,60]
[420287371,1775911128512,-1377.91817739,0.00042875,30]
[420287372,1775911128574,-150.0,0.00042878,30]
[420287373,1775911128648,-1099.5,0.00042886,30]
[420287374,1775911128703,-501.17,0.00042887,30]
[420287375,1775911128744,-251.5373618,0.00042893,30]
[420287376,1775911128786,-194.25895487,0.00042893,30]
[420287377,1775911128828,-245.2524984,0.00042893,30]
[420287378,1775911128873,-320.27544227,0.00042893,30]
[420287379,1775911128918,-244.52531101,0.00042893,30]
[420287380,1775911128958,-203.76821502,0.00042893,30]
[420287381,1775911129001,-5000.0,0.000429,120]
[420287382,1775911129043,-2168.94925683,0.000429,120]
[420287383,1775911129091,-3017.45,0.000429,30]
[420287384,1775911129138,-10000.0,0.000429,30]
[420287385,1775911129205,-345.76872502,0.000429,120]
[420287386,1775911129259,-150.0,0.00042903,30]
[420287387,1775911129317,-150.0,0.00042903,30]
[420287388,1775911129809,-251.5373618,0.0004294,30]
[420287389,1775911129856,-194.25895487,0.0004294,30]
[420287390,1775911129903,-245.2524984,0.0004294,30]
[420287391,1775911129976,-150.0,0.0004294,30]
[420287392,1775911130026,-320.27544227,0.0004294,30]
[420287393,1775911130079,-244.52531101,0.0004294,30]
[420287394,1775911130121,-203.76821502,0.0004294,30]
[420287395,1775911130170,-150.0,0.00042947,30]
[420287396,1775911130226,-2500.0,0.0004295,120]
[420287397,1775911130271,-201.0,0.0004295,30]
[420287398,1775911130315,-500.0,0.00042961,120]
[420287399,1775911130363,-150.0,0.00042969,30]
[420287400,1775911130434,-51440.0,0.0004297,120]
[420287401,1775911130482,-251.5373618,0.00042987,30]
[420287402,1775911130528,-194.25895487,0.00042987,30]
[420287403,1775911130572,-245.2524984,0.00042987,30]
[420287404,1775911130616,-320.27544227,0.00042987,30]
[420287405,1775911130664,-244.52531101,0.00042987,30]
[420287406,1775911130713,-203.76821502,0.00042987,30]
[420287407,1775911130766,-2817.51335109,0.0004299,60]
[420287408,1775911130825,-1285.0,0.00043,120]
[420287409,1775911130870,-155.19,0.00043,120]
[420287410,1775911130917,-1000.0,0.00043,120]
[420287411,1775911130960,-766.91245661,0.00043,120]
[420287412,1775911131020,-1000.0,0.00043,120]
[420287413,1775911131078,-2372.30976332,0.00043,120]
[420287414,1775911131135,-2508.0,0.00043,120]
[420287415,1775911131212,-1000.0,0.00043,120]
[420287416,1775911131305,-1000.0,0.00043,30]
[420287417,1775911131368,-1000.0,0.00043,120]
[420287418,1775911131418,-1000.0,0.00043,100]
[420287419,1775911131463,-1000.0,0.00043,120]
[420287420,1775911131509,-1000.0,0.00043,120]
[420287421,1775911131562,-1000.0,0.00043,120]
[420287422,1775911131633,-1500.0,0.00043,120]
[420287423,1775911131683,-2000.0,0.00043,120]
[420287424,1775911131755,-16244.74872947,0.00043,120]
[420287425,1775911131801,-43059.21242602,0.00043,120]
[420287426,1775911131843,-161.74124093,0.00043,120]
[420287427,1775911131901,-10000.0,0.00043,120]
[420287428,1775911131944,-7121.02,0.00043,30]
[420287429,1775911131994,-2407.0,0.00043,120]
[420287430,1775911132041,-1000.0,0.00043,120]
[420287431,1775911132097,-2246.08,0.00043,120]
[420287432,1775911132148,-1306.29459596,0.00043,30]
[420287433,1775911132193,-1000.0,0.00043,120]
[420287434,1775911132239,-10206.06972743,0.00043,120]
[420287435,1775911132284,-20446.85983671,0.00043,120]
[420287436,1775911132339,-11416.08075655,0.00043,120]
[420287437,1775911132387,-1500.0,0.00043,30]
[420287438,1775911132444,-2500.0,0.00043,30]
[420287439,1775911132499,-151.0,0.00043,120]
[420287440,1775911132548,-5000.0,0.00043,60]
[420287441,1775911132610,-3700.0,0.00043,120]
[420287442,1775911132667,-2188.398006,0.00043,120]
[420287443,1775911132710,-50226.20050504,0.00043,120]
[420287444,1775911132753,-17919.0,0.00043,120]
[420287445,1775911132795,-801.48,0.00043,120]
[420287446,1775911132856,-3888.25292265,0.00043,30]
[420287447,1775911132903,-12500.0,0.00043,120]
[420287448,1775911132943,-1620.26,0.00043,120]
[420287449,1775911132997,-1314.78,0.00043,120]
[420287450,1775911133041,-12500.0,0.00043,120]
[420287451,1775911133094,-150.0,0.00043,120]
[420287452,1775911133157,-12500.0,0.00043,120]